[Event "Slovakia Open Piestany-A 2022"]
[Site "Piestany"]
[Date "2022.07.12"]
[Round "2.21"]
[White "Skreko, Igor"]
[Black "Pniaczek, Marek"]
[Result "0-1"]
[ECO "D35"]
[WhiteElo "2193"]
[BlackElo "2312"]
[Annotator "ChessBase"]
[PlyCount "90"]
[EventDate "2022.07.12"]
[EventType "swiss"]
[EventCountry "SVK"]
[SourceTitle "playchess.com"]
[Source "ChessBase"]
[SourceQuality "1"]
[TimeControl "40/5400+30:1800+30"]

1. d4 {[%emt 0:00:05]} Nf6 {[%emt 0:00:05]} 2. c4 {[%emt 0:00:42]} e6 {[%emt 0:00:05]} 3. Nc3 {[%emt 0:00:04]} d5 {[%emt 0:00:06]} 4. cxd5 {[%emt 0:00:05]} exd5 {[%emt 0:00:06]} 5. Bg5 {[%emt 0:00:05]} c6 {[%emt 0:00:16]} 6. e3 {[%emt 0:00:05]} Bd6 {[%emt 0:00:07]} 7. Bd3 {[%emt 0:00:06]} O-O {[%emt 0:00:19]} 8. Qc2 {[%emt 0:00:05]} h6 {[%emt 0:00:04]} 9. Bh4 {[%emt 0:00:10]} Re8 {[%emt 0:00:10]} 10. Nf3 {[%emt 0:00:44]} Be6 {[%emt 0:00:19]} 11. O-O {[%emt 0:00:35]} Nbd7 {[%emt 0:00:12]} 12. Rab1 {[%emt 0:08:29]} a5 {[%emt 0:00:55]} 13. a3 {[%emt 0:02:36]} Qb8 {[%emt 0:01:51]} 14. Bg3 {[%emt 0:02:58]} Bxg3 {[%emt 0:01:23]} 15. hxg3 {[%emt 0:00:05]} Qd6 {[%emt 0:02:02]} 16. Rfc1 {[%emt 0:04:49]} Bg4 {[%emt 0:03:15]} 17. Nd2 {[%emt 0:03:31]} b5 {[%emt 0:07:26]} 18. a4 {[%emt 0:04:53]} b4 {[%emt 0:10:11]} 19. Ne2 {[%emt 0:01:06]} Rec8 {[%emt 0:10:39]} 20. Nb3 {[%emt 0:02:54]} Kf8 {[%emt 0:06:07]} 21. f3 {[%emt 0:14:15]} Be6 {[%emt 0:00:23]} 22. Kf2 {[%emt 0:02:24]} Rc7 {[%emt 0:05:12]} 23. Nf4 {[%emt 0:04:17]} g5 {[%emt 0:03:45]} 24. Ne2 {[%emt 0:02:04]} Nb6 {[%emt 0:03:09]} 25. Nc5 {[%emt 0:00:52]} Re7 {[%emt 0:00:38]} 26. Rh1 {[%emt 0:06:31]} Kg7 {[%emt 0:02:04]} 27. Rbe1 {[%emt 0:02:22]} Rae8 {[%emt 0:01:47]} 28. Nc1 {[%emt 0:01:27]} Bc8 {[%emt 0:15:17]} 29. N1b3 {[%emt 0:06:14]} Ra7 {[%emt 0:10:15]} 30. Rh2 {[%emt 0:03:49]} Rh8 {[%emt 0:02:23]} 31. Qc1 {[%emt 0:06:35]} Re8 {[%emt 0:02:32]} 32. Reh1 {[%emt 0:03:37]} Rh8 {[%emt 0:00:38]} 33. Nd2 {[%emt 0:03:05]} Re7 {[%emt 0:00:57]} 34. Bb1 {[%emt 0:01:32]} Rxe3 {[%emt 0:07:16]} 35. Kxe3 {[%emt 0:00:58]} Qxg3 {[%emt 0:00:05]} 36. Nde4 {[%emt 0:11:56]} dxe4 {[%emt 0:01:11]} 37. Nxe4 {[%emt 0:00:09]} Nbd5+ {[%emt 0:00:33]} 38. Kd3 {[%emt 0:02:12]} Ba6+ {[%emt 0:00:30]} 39. Kc2 {[%emt 0:00:36]} Nxe4 {[%emt 0:00:57]} 40. Kb3 {[%emt 0:00:38]} Nf2 {[%emt 0:02:02]} 41. Qxc6 {[%emt 0:03:58]} Nxh1 {[%emt 0:00:23]} 42. Rxh1 {[%emt 0:00:17]} Bc8 {[%emt 0:00:19]} 43. Be4 {[%emt 0:02:54]} Nf6 {[%emt 0:01:06]} 44. Rd1 {[%emt 0:02:21]} Bd7 {[%emt 0:03:42]} 45. Qb6 {[%emt 0:00:56]} Nxe4 {[%emt 0:00:16]} 0-1

[Event "Slovakia Open Piestany-A 2022"]
[Site "Piestany"]
[Date "2022.07.12"]
[Round "2.22"]
[White "Michelle Catherina, P."]
[Black "Palchuk, Andrii"]
[Result "0-1"]
[ECO "B12"]
[WhiteElo "2141"]
[BlackElo "2248"]
[Annotator "ChessBase"]
[PlyCount "68"]
[EventDate "2022.07.12"]
[EventType "swiss"]
[EventCountry "SVK"]
[SourceTitle "playchess.com"]
[Source "ChessBase"]
[SourceQuality "1"]
[TimeControl "40/5400+30:1800+30"]

1. e4 {[%emt 0:00:25]} c6 {[%emt 0:04:04]} 2. d4 {[%emt 0:01:01]} d5 {[%emt 0:00:04]} 3. f3 {[%emt 0:00:06]} Qb6 {[%emt 0:00:06]} 4. Nc3 {[%emt 0:00:11]} dxe4 {[%emt 0:00:23]} 5. Nxe4 {[%emt 0:00:05]} Nf6 {[%emt 0:03:41]} 6. c3 {[%emt 0:07:36]} Nbd7 {[%emt 0:10:52]} 7. Bc4 {[%emt 0:09:46]} e6 {[%emt 0:11:47]} 8. Ne2 {[%emt 0:02:16]} c5 {[%emt 0:00:41]} 9. O-O {[%emt 0:12:20]} cxd4 {[%emt 0:03:13]} 10. cxd4 {[%emt 0:02:45]} Be7 {[%emt 0:06:19]} 11. Kh1 {[%emt 0:03:04]} O-O {[%emt 0:02:40]} 12. Bb3 {[%emt 0:07:42]} Rd8 {[%emt 0:12:31]} 13. Bg5 {[%emt 0:08:08]} Nf8 {[%emt 0:05:10]} 14. Qc1 {[%emt 0:04:06]} Ng6 {[%emt 0:07:44]} 15. Bxf6 {[%emt 0:04:45]} gxf6 {[%emt 0:02:13]} 16. Qh6 {[%emt 0:03:54]} Kh8 {[%emt 0:04:35]} 17. f4 {[%emt 0:04:39]} Rg8 {[%emt 0:08:50]} 18. Rf3 {[%emt 0:02:04]} Nf8 {[%emt 0:06:52]} 19. Qh5 {[%emt 0:02:40]} Rg7 {[%emt 0:01:27]} 20. Rg3 {[%emt 0:05:20]} Ng6 {[%emt 0:02:31]} 21. d5 {[%emt 0:04:53]} Bd7 {[%emt 0:01:21]} 22. Rd1 {[%emt 0:03:31]} exd5 {[%emt 0:01:00]} 23. N4c3 {[%emt 0:02:12]} Bc6 {[%emt 0:01:19]} 24. Qh6 {[%emt 0:02:44]} Rag8 {[%emt 0:00:57]} 25. Nd4 {[%emt 0:05:15]} Bd6 {[%emt 0:00:31]} 26. Nce2 {[%emt 0:00:55]} Bd7 {[%emt 0:00:50]} 27. Bxd5 {[%emt 0:00:47]} Qc7 {[%emt 0:01:12]} 28. Rc3 {[%emt 0:00:36]} Qb8 {[%emt 0:00:10]} 29. f5 {[%emt 0:00:25]} Nf4 {[%emt 0:00:53]} 30. Nxf4 {[%emt 0:00:23]} Bxf4 {[%emt 0:00:01]} 31. Qxf6 {[%emt 0:00:08]} Bg5 {[%emt 0:00:33]} 32. Qxg7+ {[%emt 0:01:02]} Rxg7 {[%emt 0:00:16]} 33. Nf3 {[%emt 0:00:45]} Bf6 {[%emt 0:00:37]} 34. Rb3 {[%emt 0:00:13]} Ba4 {[%emt 0:00:26]} 0-1

[Event "Slovakia Open Piestany-A 2022"]
[Site "Piestany"]
[Date "2022.07.12"]
[Round "2.23"]
[White "Domalchuk-Jonasson, Aleksandr"]
[Black "Soham Datar"]
[Result "1/2-1/2"]
[ECO "D11"]
[WhiteElo "2244"]
[BlackElo "2111"]
[Annotator "ChessBase"]
[PlyCount "119"]
[EventDate "2022.07.12"]
[EventType "swiss"]
[EventCountry "SVK"]
[SourceTitle "playchess.com"]
[Source "ChessBase"]
[SourceQuality "1"]
[TimeControl "40/5400+30:1800+30"]

1. d4 {[%emt 0:00:57]} d5 {[%emt 0:00:07]} 2. c4 {[%emt 0:00:56]} c6 {[%emt 0:00:08]} 3. Nf3 {[%emt 0:00:54]} Nf6 {[%emt 0:00:14]} 4. e3 {[%emt 0:00:35]} a6 {[%emt 0:01:08]} 5. Bd3 {[%emt 0:01:53]} b5 {[%emt 0:18:19]} 6. b3 {[%emt 0:00:43]} Bg4 {[%emt 0:01:06]} 7. Nbd2 {[%emt 0:01:32]} Nbd7 {[%emt 0:01:28]} 8. Qc2 {[%emt 0:02:47]} Bxf3 {[%emt 0:02:20]} 9. Nxf3 {[%emt 0:00:14]} e6 {[%emt 0:00:14]} 10. O-O {[%emt 0:09:37]} Bd6 {[%emt 0:01:02]} 11. Bb2 {[%emt 0:01:56]} Qb8 {[%emt 0:02:27]} 12. e4 {[%emt 0:08:07]} bxc4 {[%emt 0:02:16]} 13. bxc4 {[%emt 0:03:42]} dxe4 {[%emt 0:00:56]} 14. Bxe4 {[%emt 0:00:10]} Nxe4 {[%emt 0:03:35]} 15. Qxe4 {[%emt 0:00:07]} O-O {[%emt 0:18:55]} 16. Qxc6 {[%emt 0:13:37]} Ra7 {[%emt 0:00:12]} 17. c5 {[%emt 0:08:15]} Bxc5 {[%emt 0:02:59]} 18. dxc5 {[%emt 0:01:09]} Qxb2 {[%emt 0:00:23]} 19. h3 {[%emt 0:13:10]} Qa3 {[%emt 0:01:09]} 20. Rfc1 {[%emt 0:00:57]} Qa5 {[%emt 0:04:43]} 21. Qd6 {[%emt 0:04:52]} Rc8 {[%emt 0:07:14]} 22. c6 {[%emt 0:06:15]} Nf6 {[%emt 0:00:37]} 23. Rab1 {[%emt 0:02:09]} Rac7 {[%emt 0:12:06]} 24. Ne5 {[%emt 0:06:39]} h6 {[%emt 0:02:17]} 25. Rc5 {[%emt 0:08:20]} Qxa2 {[%emt 0:00:23]} 26. Rb8 {[%emt 0:02:43]} Qxf2+ {[%emt 0:03:40]} 27. Kxf2 {[%emt 0:00:49]} Ne4+ {[%emt 0:00:09]} 28. Kf3 {[%emt 0:00:36]} Nxd6 {[%emt 0:00:06]} 29. Nd7 {[%emt 0:00:38]} Rxb8 {[%emt 0:02:09]} 30. Nxb8 {[%emt 0:00:02]} Kf8 {[%emt 0:09:01]} 31. Ra5 {[%emt 0:00:57]} Ke7 {[%emt 0:01:54]} 32. Rxa6 {[%emt 0:00:12]} Nf5 {[%emt 0:00:27]} 33. g4 {[%emt 0:00:40]} Nd6 {[%emt 0:02:03]} 34. Nd7 {[%emt 0:00:42]} Nc8 {[%emt 0:00:52]} 35. Ke4 {[%emt 0:00:33]} Kd6 {[%emt 0:00:18]} 36. Ne5 {[%emt 0:00:18]} f6 {[%emt 0:00:28]} 37. Nc4+ {[%emt 0:00:33]} Kc5 {[%emt 0:00:13]} 38. Na5 {[%emt 0:00:42]} Ra7 {[%emt 0:00:58]} 39. Nb7+ {[%emt 0:00:09]} Kb5 {[%emt 0:00:46]} 40. Rxa7 {[%emt 0:00:12]} Nxa7 {[%emt 0:00:04]} 41. Nd8 {[%emt 0:30:59]} Nxc6 {[%emt 0:30:51]} 42. Nxe6 {[%emt 0:00:02]} g6 {[%emt 0:00:28]} 43. Nf4 {[%emt 0:00:00]} Ne7 {[%emt 0:00:00]} 44. Nxg6 {[%emt 0:00:00]} Nxg6 {[%emt 0:00:00]} 45. Kf5 {[%emt 0:00:00]} Nh4+ {[%emt 0:00:00]} 46. Kxf6 {[%emt 0:00:00]} Kc6 {[%emt 0:00:00]} 47. Kg7 {[%emt 0:00:00]} Kd7 {[%emt 0:00:00]} 48. Kxh6 {[%emt 0:00:00]} Ke7 {[%emt 0:00:00]} 49. g5 {[%emt 0:00:00]} Kf7 {[%emt 0:00:00]} 50. Kh5 {[%emt 0:00:00]} Nf3 {[%emt 0:00:00]} 51. h4 {[%emt 0:00:00]} Kg7 {[%emt 0:00:00]} 52. Kg4 {[%emt 0:00:00]} Nxg5 {[%emt 0:00:00]} 53. hxg5 {[%emt 0:00:00]} Kg6 {[%emt 0:00:00]} 54. Kf4 {[%emt 0:00:00]} Kg7 {[%emt 0:00:00]} 55. Kf5 {[%emt 0:00:00]} Kf7 {[%emt 0:00:00]} 56. g6+ {[%emt 0:00:00]} Kg7 {[%emt 0:00:00]} 57. Kg5 {[%emt 0:00:00]} Kg8 {[%emt 0:00:00]} 58. Kh6 {[%emt 0:00:00]} Kh8 {[%emt 0:00:00]} 59. g7+ {[%emt 0:00:00]} Kg8 {[%emt 0:00:00]} 60. Kg6 {[%emt 0:00:00]} 1/2-1/2

[Event "Slovakia Open Piestany-A 2022"]
[Site "Piestany"]
[Date "2022.07.12"]
[Round "2.24"]
[White "Warchol, Kamil"]
[Black "Leszko, Bence"]
[Result "1/2-1/2"]
[ECO "B50"]
[WhiteElo "2121"]
[BlackElo "2241"]
[Annotator "ChessBase"]
[PlyCount "90"]
[EventDate "2022.07.12"]
[EventType "swiss"]
[EventCountry "SVK"]
[SourceTitle "playchess.com"]
[Source "ChessBase"]
[SourceQuality "1"]
[TimeControl "40/5400+30:1800+30"]

1. e4 {[%emt 0:00:05]} c5 {[%emt 0:14:48]} 2. Nf3 {[%emt 0:00:09]} e6 {[%emt 0:00:04]} 3. b3 {[%emt 0:03:19]} d6 {[%emt 0:00:07]} 4. Bb2 {[%emt 0:00:13]} Nf6 {[%emt 0:00:09]} 5. e5 {[%emt 0:15:37]} dxe5 {[%emt 0:00:02]} 6. Nxe5 {[%emt 0:00:10]} Nbd7 {[%emt 0:00:04]} 7. Qf3 {[%emt 0:04:23]} Nxe5 {[%emt 0:10:40]} 8. Bxe5 {[%emt 0:00:51]} a6 {[%emt 0:02:48]} 9. Be2 {[%emt 0:13:43]} Bd6 {[%emt 0:00:14]} 10. Bxd6 {[%emt 0:13:00]} Qxd6 {[%emt 0:00:02]} 11. Qg3 {[%emt 0:03:08]} Qxg3 {[%emt 0:02:48]} 12. hxg3 {[%emt 0:00:04]} Bd7 {[%emt 0:00:11]} 13. Bf3 {[%emt 0:02:54]} Rb8 {[%emt 0:01:50]} 14. Nc3 {[%emt 0:03:10]} Ke7 {[%emt 0:00:17]} 15. O-O {[%emt 0:07:41]} Rhc8 {[%emt 0:01:36]} 16. d3 {[%emt 0:03:42]} Bc6 {[%emt 0:00:41]} 17. Bxc6 {[%emt 0:01:19]} Rxc6 {[%emt 0:00:02]} 18. a4 {[%emt 0:00:16]} b6 {[%emt 0:00:32]} 19. Rfe1 {[%emt 0:01:18]} Rd8 {[%emt 0:01:33]} 20. Re2 {[%emt 0:02:04]} Nd5 {[%emt 0:00:45]} 21. Nxd5+ {[%emt 0:03:11]} Rxd5 {[%emt 0:00:01]} 22. Rae1 {[%emt 0:00:54]} Rd4 {[%emt 0:01:53]} 23. Re3 {[%emt 0:00:51]} h6 {[%emt 0:01:11]} 24. f3 {[%emt 0:01:22]} Rdd6 {[%emt 0:02:07]} 25. Ra1 {[%emt 0:01:32]} f6 {[%emt 0:02:09]} 26. g4 {[%emt 0:01:02]} Kf7 {[%emt 0:00:21]} 27. Re4 {[%emt 0:01:46]} Rd4 {[%emt 0:00:21]} 28. Kf2 {[%emt 0:02:45]} e5 {[%emt 0:00:51]} 29. Ke3 {[%emt 0:01:19]} Kg6 {[%emt 0:01:50]} 30. g3 {[%emt 0:03:19]} Rcd6 {[%emt 0:03:12]} 31. Ke2 {[%emt 0:02:53]} Kg5 {[%emt 0:03:27]} 32. Rh1 {[%emt 0:01:47]} Rxe4+ {[%emt 0:00:54]} 33. dxe4 {[%emt 0:00:17]} Kg6 {[%emt 0:07:42]} 34. Rb1 {[%emt 0:01:22]} Kf7 {[%emt 0:00:19]} 35. Rb2 {[%emt 0:01:08]} Ke6 {[%emt 0:00:23]} 36. c3 {[%emt 0:00:42]} Kd7 {[%emt 0:00:29]} 37. Rd2 {[%emt 0:03:01]} Rxd2+ {[%emt 0:04:18]} 38. Kxd2 {[%emt 0:00:00]} c4 {[%emt 0:01:10]} 39. b4 {[%emt 0:00:53]} b5 {[%emt 0:00:13]} 40. axb5 {[%emt 0:00:39]} axb5 {[%emt 0:00:01]} 41. Ke3 {[%emt 0:30:38]} Ke6 {[%emt 0:30:43]} 42. f4 {[%emt 0:00:00]} Kf7 {[%emt 0:00:00]} 43. f5 {[%emt 0:00:00]} g6 {[%emt 0:00:00]} 44. Kf3 {[%emt 0:00:00]} Kg7 {[%emt 0:00:00]} 45. Kg2 {[%emt 0:00:00]} g5 {[%emt 0:00:00]} 1/2-1/2

[Event "Slovakia Open Piestany-A 2022"]
[Site "Piestany"]
[Date "2022.07.12"]
[Round "2.25"]
[White "Chlpik, Martin"]
[Black "Sevcikova, Lucia"]
[Result "0-1"]
[ECO "D02"]
[WhiteElo "2236"]
[BlackElo "2036"]
[Annotator "ChessBase"]
[PlyCount "102"]
[EventDate "2022.07.12"]
[EventType "swiss"]
[EventCountry "SVK"]
[SourceTitle "playchess.com"]
[Source "ChessBase"]
[SourceQuality "1"]
[TimeControl "40/5400+30:1800+30"]

1. d4 {[%emt 0:05:19]} d5 {[%emt 0:00:08]} 2. Nf3 {[%emt 0:00:47]} Nf6 {[%emt 0:00:09]} 3. Bf4 {[%emt 0:00:06]} e6 {[%emt 0:00:06]} 4. e3 {[%emt 0:00:25]} c5 {[%emt 0:00:13]} 5. Nc3 {[%emt 0:08:25]} a6 {[%emt 0:05:03]} 6. Ne5 {[%emt 0:01:48]} Nc6 {[%emt 0:02:26]} 7. a3 {[%emt 0:06:42]} Nxe5 {[%emt 0:03:51]} 8. Bxe5 {[%emt 0:02:00]} Bd6 {[%emt 0:00:55]} 9. e4 {[%emt 0:07:51]} Bxe5 {[%emt 0:14:26]} 10. dxe5 {[%emt 0:00:05]} Nxe4 {[%emt 0:00:04]} 11. Nxe4 {[%emt 0:00:07]} dxe4 {[%emt 0:00:04]} 12. Qg4 {[%emt 0:00:25]} O-O {[%emt 0:10:21]} 13. Qxe4 {[%emt 0:02:03]} Qa5+ {[%emt 0:09:21]} 14. c3 {[%emt 0:00:42]} Bd7 {[%emt 0:13:29]} 15. Qxb7 {[%emt 0:17:36]} Bb5 {[%emt 0:02:32]} 16. Bxb5 {[%emt 0:05:07]} axb5 {[%emt 0:00:05]} 17. O-O {[%emt 0:00:09]} Rfb8 {[%emt 0:03:07]} 18. Qe4 {[%emt 0:06:27]} b4 {[%emt 0:03:37]} 19. Rfc1 {[%emt 0:15:33]} bxc3 {[%emt 0:04:18]} 20. Rxc3 {[%emt 0:00:05]} Rxb2 {[%emt 0:03:19]} 21. Rxc5 {[%emt 0:00:07]} Qa7 {[%emt 0:02:16]} 22. Qe3 {[%emt 0:02:51]} Qb7 {[%emt 0:04:43]} 23. h4 {[%emt 0:03:37]} h6 {[%emt 0:03:54]} 24. Rac1 {[%emt 0:06:31]} Rb3 {[%emt 0:05:11]} 25. Qf4 {[%emt 0:00:44]} Rb1 {[%emt 0:00:14]} 26. Rxb1 {[%emt 0:00:21]} Qxb1+ {[%emt 0:00:08]} 27. Rc1 {[%emt 0:00:05]} Qb3 {[%emt 0:02:43]} 28. Rc7 {[%emt 0:00:34]} Qb1+ {[%emt 0:01:35]} 29. Kh2 {[%emt 0:00:05]} Qf5 {[%emt 0:00:19]} 30. Qe3 {[%emt 0:01:09]} Ra4 {[%emt 0:01:03]} 31. Rc5 {[%emt 0:05:34]} Rxh4+ {[%emt 0:00:41]} 32. Kg1 {[%emt 0:00:30]} Qh5 {[%emt 0:01:28]} 33. Rc8+ {[%emt 0:01:09]} Kh7 {[%emt 0:00:04]} 34. Qd3+ {[%emt 0:00:04]} g6 {[%emt 0:00:05]} 35. g3 {[%emt 0:01:06]} Rh1+ {[%emt 0:02:11]} 36. Kg2 {[%emt 0:00:30]} Rd1 {[%emt 0:00:30]} 37. Qxd1 {[%emt 0:00:15]} Qxd1 {[%emt 0:00:06]} 38. f4 {[%emt 0:01:04]} Kg7 {[%emt 0:01:24]} 39. Rb8 {[%emt 0:01:00]} Qa4 {[%emt 0:00:22]} 40. Rb2 {[%emt 0:00:07]} Qxa3 {[%emt 0:00:09]} 41. Rf2 {[%emt 0:30:02]} Qe3 {[%emt 0:30:51]} 42. Rf1 {[%emt 0:00:16]} g5 {[%emt 0:00:30]} 43. Rf2 {[%emt 0:00:06]} h5 {[%emt 0:00:34]} 44. Rf1 {[%emt 0:00:40]} h4 {[%emt 0:00:12]} 45. gxh4 {[%emt 0:00:20]} gxh4 {[%emt 0:00:06]} 46. Kh2 {[%emt 0:01:02]} Qg3+ {[%emt 0:00:06]} 47. Kh1 {[%emt 0:00:06]} Kh6 {[%emt 0:00:06]} 48. f5 {[%emt 0:00:50]} h3 {[%emt 0:00:16]} 49. Rg1 {[%emt 0:00:12]} Qf3+ {[%emt 0:00:06]} 50. Kh2 {[%emt 0:00:04]} Qf2+ {[%emt 0:00:50]} 51. Kh1 {[%emt 0:00:12]} Qxf5 {[%emt 0:00:09]} 0-1

[Event "Slovakia Open Piestany-A 2022"]
[Site "Piestany"]
[Date "2022.07.12"]
[Round "2.26"]
[White "Zdrazil, Patrik"]
[Black "Aradhya, Garg"]
[Result "1/2-1/2"]
[ECO "C47"]
[WhiteElo "2103"]
[BlackElo "2229"]
[Annotator "ChessBase"]
[PlyCount "48"]
[EventDate "2022.07.12"]
[EventType "swiss"]
[EventCountry "SVK"]
[SourceTitle "playchess.com"]
[Source "ChessBase"]
[SourceQuality "1"]
[TimeControl "40/5400+30:1800+30"]

1. e4 {[%emt 0:00:07]} e5 {[%emt 0:00:57]} 2. Nf3 {[%emt 0:00:06]} Nc6 {[%emt 0:00:02]} 3. d4 {[%emt 0:00:11]} exd4 {[%emt 0:00:02]} 4. Nxd4 {[%emt 0:00:07]} Nf6 {[%emt 0:01:14]} 5. Nc3 {[%emt 0:00:05]} Bb4 {[%emt 0:00:10]} 6. Nxc6 {[%emt 0:00:07]} bxc6 {[%emt 0:00:02]} 7. Bd3 {[%emt 0:00:11]} O-O {[%emt 0:00:06]} 8. O-O {[%emt 0:00:05]} d5 {[%emt 0:00:36]} 9. exd5 {[%emt 0:00:13]} cxd5 {[%emt 0:00:21]} 10. Bg5 {[%emt 0:00:45]} c6 {[%emt 0:00:25]} 11. Qf3 {[%emt 0:00:49]} Bd6 {[%emt 0:00:27]} 12. Rae1 {[%emt 0:04:25]} Rb8 {[%emt 0:00:44]} 13. Nd1 {[%emt 0:00:35]} h6 {[%emt 0:00:57]} 14. Bxf6 {[%emt 0:00:25]} Qxf6 {[%emt 0:00:02]} 15. Qxf6 {[%emt 0:00:07]} gxf6 {[%emt 0:00:02]} 16. b3 {[%emt 0:02:12]} f5 {[%emt 0:02:44]} 17. Ne3 {[%emt 0:07:20]} f4 {[%emt 0:00:01]} 18. Nf5 {[%emt 0:00:06]} Bxf5 {[%emt 0:00:21]} 19. Bxf5 {[%emt 0:00:08]} Kg7 {[%emt 0:01:15]} 20. Bd7 {[%emt 0:04:39]} Rb6 {[%emt 0:00:31]} 21. Re8 {[%emt 0:07:11]} Rxe8 {[%emt 0:00:09]} 22. Bxe8 {[%emt 0:00:10]} Be5 {[%emt 0:04:09]} 23. Bd7 {[%emt 0:02:47]} Kf8 {[%emt 0:02:27]} 24. Re1 {[%emt 0:01:50]} Bd4 {[%emt 0:03:11]} 1/2-1/2

[Event "Slovakia Open Piestany-A 2022"]
[Site "Piestany"]
[Date "2022.07.12"]
[Round "2.27"]
[White "Matras, Ondrej"]
[Black "Walter, Ema"]
[Result "1-0"]
[ECO "D51"]
[WhiteElo "2229"]
[BlackElo "2000"]
[Annotator "ChessBase"]
[PlyCount "67"]
[EventDate "2022.07.12"]
[EventType "swiss"]
[EventCountry "SVK"]
[SourceTitle "playchess.com"]
[Source "ChessBase"]
[SourceQuality "1"]
[TimeControl "40/5400+30:1800+30"]

1. d4 {[%emt 0:00:41]} Nf6 {[%emt 0:00:07]} 2. c4 {[%emt 0:00:03]} e6 {[%emt 0:00:07]} 3. Nc3 {[%emt 0:00:03]} Bb4 {[%emt 0:00:05]} 4. Qc2 {[%emt 0:00:05]} O-O {[%emt 0:00:07]} 5. Bg5 {[%emt 0:00:07]} h6 {[%emt 0:00:12]} 6. Bh4 {[%emt 0:00:04]} d5 {[%emt 0:00:07]} 7. e3 {[%emt 0:00:28]} Nbd7 {[%emt 0:00:15]} 8. cxd5 {[%emt 0:00:45]} exd5 {[%emt 0:00:10]} 9. Bd3 {[%emt 0:00:15]} c6 {[%emt 0:00:55]} 10. Nf3 {[%emt 0:01:24]} Re8 {[%emt 0:00:56]} 11. a3 {[%emt 0:04:31]} Bd6 {[%emt 0:07:12]} 12. b4 {[%emt 0:01:14]} b6 {[%emt 0:08:33]} 13. O-O {[%emt 0:00:37]} Bb7 {[%emt 0:00:33]} 14. e4 {[%emt 0:03:29]} dxe4 {[%emt 0:03:50]} 15. Nxe4 {[%emt 0:00:03]} Be7 {[%emt 0:06:28]} 16. Rfe1 {[%emt 0:07:59]} Nxe4 {[%emt 0:16:09]} 17. Bxe7 {[%emt 0:00:29]} Rxe7 {[%emt 0:00:10]} 18. Bxe4 {[%emt 0:00:31]} Rc8 {[%emt 0:02:29]} 19. Bh7+ {[%emt 0:00:16]} Kh8 {[%emt 0:02:35]} 20. Bf5 {[%emt 0:00:12]} Rc7 {[%emt 0:08:38]} 21. Rxe7 {[%emt 0:02:43]} Qxe7 {[%emt 0:00:03]} 22. Re1 {[%emt 0:00:20]} Qd8 {[%emt 0:01:36]} 23. Qe2 {[%emt 0:32:58]} Nf6 {[%emt 0:04:43]} 24. Qe5 {[%emt 0:01:48]} Kg8 {[%emt 0:12:23]} 25. Bc2 {[%emt 0:29:41]} Kf8 {[%emt 0:04:42]} 26. Bb3 {[%emt 0:00:49]} Ne8 {[%emt 0:11:30]} 27. Qf4 {[%emt 0:01:28]} Re7 {[%emt 0:02:11]} 28. Rxe7 {[%emt 0:02:01]} Qxe7 {[%emt 0:00:05]} 29. Ne5 {[%emt 0:00:15]} Nf6 {[%emt 0:00:25]} 30. Bxf7 {[%emt 0:00:24]} Qd8 {[%emt 0:01:44]} 31. Bc4 {[%emt 0:00:37]} Ke8 {[%emt 0:02:04]} 32. Ng6 {[%emt 0:04:35]} Qd7 {[%emt 0:01:19]} 33. Qe5+ {[%emt 0:02:04]} Kd8 {[%emt 0:00:07]} 34. Nf8 {[%emt 0:01:14]} 1-0

[Event "Slovakia Open Piestany-A 2022"]
[Site "Piestany"]
[Date "2022.07.12"]
[Round "2.28"]
[White "Pennica, Andrea"]
[Black "Zvarik, Martin"]
[Result "1/2-1/2"]
[ECO "C50"]
[WhiteElo "1986"]
[BlackElo "2213"]
[Annotator "ChessBase"]
[PlyCount "57"]
[EventDate "2022.07.12"]
[EventType "swiss"]
[EventCountry "SVK"]
[SourceTitle "playchess.com"]
[Source "ChessBase"]
[SourceQuality "1"]
[TimeControl "40/5400+30:1800+30"]

1. e4 {[%emt 0:00:04]} e5 {[%emt 0:03:36]} 2. Nf3 {[%emt 0:00:12]} Nc6 {[%emt 0:00:09]} 3. Bc4 {[%emt 0:00:06]} d6 {[%emt 0:01:21]} 4. d4 {[%emt 0:02:25]} Bg4 {[%emt 0:01:41]} 5. c3 {[%emt 0:08:17]} Qf6 {[%emt 0:02:56]} 6. Qb3 {[%emt 0:04:14]} Nd8 {[%emt 0:10:34]} 7. dxe5 {[%emt 0:12:31]} Qg6 {[%emt 0:06:01]} 8. Nbd2 {[%emt 0:02:21]} c6 {[%emt 0:04:41]} 9. Nh4 {[%emt 0:19:52]} Qh5 {[%emt 0:00:30]} 10. Ndf3 {[%emt 0:01:54]} dxe5 {[%emt 0:02:24]} 11. h3 {[%emt 0:01:17]} Bxf3 {[%emt 0:01:33]} 12. Nxf3 {[%emt 0:00:06]} Nf6 {[%emt 0:03:45]} 13. Bg5 {[%emt 0:09:31]} Nxe4 {[%emt 0:23:03]} 14. Bxd8 {[%emt 0:01:59]} Nc5 {[%emt 0:00:15]} 15. Qc2 {[%emt 0:08:07]} Rxd8 {[%emt 0:02:52]} 16. g4 {[%emt 0:02:19]} Qh6 {[%emt 0:12:09]} 17. Nxe5 {[%emt 0:00:20]} Ne6 {[%emt 0:00:07]} 18. Qf5 {[%emt 0:06:18]} Qf6 {[%emt 0:02:48]} 19. Nxf7 {[%emt 0:00:29]} Qxf5 {[%emt 0:00:40]} 20. gxf5 {[%emt 0:00:05]} Kxf7 {[%emt 0:00:06]} 21. fxe6+ {[%emt 0:00:17]} Kf6 {[%emt 0:00:25]} 22. a4 {[%emt 0:04:05]} Bc5 {[%emt 0:05:58]} 23. Ke2 {[%emt 0:01:07]} Rhf8 {[%emt 0:04:35]} 24. Rhg1 {[%emt 0:05:31]} g5 {[%emt 0:02:31]} 25. Rad1 {[%emt 0:02:38]} h6 {[%emt 0:01:33]} 26. Rxd8 {[%emt 0:00:29]} Rxd8 {[%emt 0:00:02]} 27. Rg3 {[%emt 0:00:34]} Bd6 {[%emt 0:02:43]} 28. Rd3 {[%emt 0:01:04]} Bc7 {[%emt 0:00:26]} 29. Rxd8 {[%emt 0:00:17]} 1/2-1/2